bitfinex/quotes_BTCUSD_20250331
["timestamp","ask_amount","ask_price","bid_price","bid_amount"]
[1743446411486,0.56131,83562.0,83561.0,2e-07]
[1743446413657,0.249343,83562.0,83561.0,2e-07]
[1743446413786,0.26131,83562.0,83561.0,2e-07]
[1743446414007,0.26131,83562.0,83561.0,0.00744889]
[1743446414243,0.26131,83562.0,83561.0,2e-07]
[1743446414454,0.25131,83562.0,83561.0,2e-07]
[1743446414659,0.25631,83562.0,83561.0,2e-07]
[1743446414853,0.26131,83562.0,83561.0,2e-07]
[1743446422733,0.70845166,83562.0,83561.0,2e-07]
[1743446422959,0.60811,83562.0,83561.0,2e-07]
[1743446426061,0.551318,83559.0,83558.0,4.8e-07]
[1743446426269,0.67392186,83559.0,83558.0,4.8e-07]
[1743446426725,0.79652572,83559.0,83558.0,4.8e-07]
[1743446427589,0.551318,83559.0,83558.0,4.8e-07]
[1743446428472,0.556318,83559.0,83558.0,4.8e-07]
[1743446428812,0.561318,83559.0,83558.0,4.8e-07]
[1743446429243,0.556318,83559.0,83558.0,4.8e-07]
[1743446429701,0.561318,83559.0,83558.0,4.8e-07]
[1743446430141,0.261318,83559.0,83558.0,4.8e-07]
[1743446430534,0.561318,83559.0,83558.0,4.8e-07]
[1743446430728,0.551318,83559.0,83558.0,4.8e-07]
[1743446431117,0.556318,83559.0,83558.0,4.8e-07]
[1743446431711,0.560318,83559.0,83558.0,4.8e-07]
[1743446432125,0.565318,83559.0,83558.0,4.8e-07]
[1743446432355,0.014,83559.0,83558.0,0.12260434]
[1743446432506,0.253351,83559.0,83558.0,0.12260434]
[1743446432708,0.260318,83559.0,83558.0,0.00998033]
[1743446432916,0.265318,83559.0,83558.0,0.00998033]
[1743446433117,0.265318,83559.0,83558.0,4.8e-07]
[1743446435973,0.014,83559.0,83558.0,0.12260434]
[1743446436353,0.014,83559.0,83558.0,0.13258419]
[1743446438065,0.253351,83559.0,83558.0,0.13258419]
[1743446438970,0.265318,83559.0,83558.0,0.13258419]
[1743446439178,0.265318,83559.0,83558.0,0.00998033]
[1743446439412,0.265318,83559.0,83558.0,4.8e-07]
[1743446440613,0.565318,83559.0,83558.0,4.8e-07]
[1743446440818,0.565318,83559.0,83558.0,0.00033768]
[1743446441020,0.5654866,83559.0,83558.0,0.00033768]
[1743446443891,0.5654866,83559.0,83558.0,0.20604154]
[1743446445062,0.3141686,83559.0,83558.0,0.20604154]
[1743446445215,0.2654866,83559.0,83558.0,0.21602095]
[1743446447771,0.2535196,83559.0,83558.0,0.09341709]
[1743446447969,0.2654866,83559.0,83558.0,0.01031709]
[1743446448211,0.2654866,83559.0,83558.0,0.00033768]
[1743446449028,0.0141686,83559.0,83558.0,0.00033768]
[1743446449243,0.2654866,83559.0,83558.0,0.00033768]
[1743446449510,0.0141686,83559.0,83558.0,0.20414154]
[1743446449967,0.0141686,83559.0,83558.0,0.21412095]
[1743446450960,0.2535196,83559.0,83558.0,0.21412095]
[1743446451612,0.0141686,83559.0,83558.0,0.20414154]
[1743446452052,0.0141686,83559.0,83558.0,0.21412095]
[1743446453260,0.0141686,83559.0,83558.0,0.6212561]
[1743446453477,0.0141686,83559.0,83558.0,1.0348628]
[1743446453697,0.0141686,83559.0,83558.0,1.0829628]
[1743446453897,0.0091686,83559.0,83558.0,1.0829628]
[1743446454292,0.0141686,83559.0,83558.0,1.0829628]
[1743446454498,0.0051686,83559.0,83558.0,1.0829628]
[1743446454707,0.1073343,83590.0,83569.0,0.011966]
[1743446454918,0.1073343,83590.0,83585.0,0.39688085]
[1743446455133,0.1073343,83590.0,83585.0,1.07436471]
[1743446455342,0.1073343,83590.0,83585.0,1.08421841]
[1743446456143,0.182695,83586.0,83585.0,1.08421841]
[1743446456347,0.182695,83586.0,83585.0,1.58421841]
[1743446457360,0.183695,83586.0,83585.0,1.58421841]
[1743446459911,0.182695,83586.0,83585.0,1.58521841]
[1743446460809,0.182695,83586.0,83585.0,1.59693114]
[1743446461043,0.182695,83586.0,83585.0,1.59793114]
[1743446461258,0.182695,83586.0,83585.0,1.59693114]
[1743446461751,0.182695,83586.0,83585.0,1.60805573]
[1743446463376,0.182695,83586.0,83585.0,1.14338215]
[1743446463596,0.433932,83586.0,83585.0,1.19025756]
[1743446463798,0.433932,83586.0,83585.0,0.9288537]
[1743446464017,0.433932,83586.0,83585.0,0.4288537]
[1743446464456,0.433932,83586.0,83585.0,0.4278537]
[1743446464726,0.433932,83586.0,83585.0,0.0118537]
[1743446464948,0.4361006,83586.0,83585.0,0.0098537]
[1743446465177,0.239295,83579.0,83570.0,0.0003372]
[1743446465391,0.239299,83578.0,83571.0,0.12260386]
[1743446465599,0.239311,83573.0,83571.0,0.13251444]
[1743446465808,0.251276,83573.0,83571.0,0.13251444]
[1743446466013,0.239311,83573.0,83571.0,0.13251444]
[1743446467177,0.241311,83573.0,83571.0,0.13251444]
[1743446467402,0.002,83573.0,83571.0,0.13251444]
[1743446468641,0.003,83573.0,83571.0,0.13251444]
[1743446470191,0.003,83573.0,83572.0,0.01454085]
[1743446470404,0.003,83573.0,83572.0,0.13714471]
[1743446470605,0.003,83573.0,83572.0,0.547051]
[1743446470784,0.003,83573.0,83572.0,0.147051]
[1743446471147,0.001,83573.0,83572.0,0.147051]
[1743446471355,0.239294,83580.0,83572.0,0.147051]
[1743446471699,0.239294,83580.0,83573.0,0.12260386]
[1743446472257,0.239295,83579.0,83573.0,0.13250585]
[1743446472458,0.239294,83580.0,83573.0,0.13250585]
[1743446472801,0.239296,83579.0,83573.0,0.13250585]
[1743446473001,0.239295,83579.0,83573.0,0.13250585]
[1743446473209,0.239291,83580.0,83573.0,0.13250585]
[1743446473566,0.243291,83580.0,83573.0,0.13250585]
[1743446473775,0.011965,83575.0,83573.0,0.13250585]
[1743446473977,0.251273,83574.0,83573.0,0.13250585]
[1743446475139,0.001,83575.0,83573.0,0.13250585]
[1743446475345,0.001,83575.0,83574.0,0.251273]
[1743446475558,0.004,83579.0,83578.0,0.251261]
[1743446475763,0.1828636,83586.0,83583.0,0.239281]
[1743446475968,0.1828636,83586.0,83584.0,0.26140386]
[1743446476172,0.1828636,83586.0,83584.0,0.27126171]
[1743446476389,0.1828636,83586.0,83585.0,0.46737722]
[1743446476605,0.1828636,83586.0,83585.0,0.47483827]
[1743446476821,0.1828636,83586.0,83585.0,0.46423827]
[1743446477029,0.1828636,83586.0,83585.0,0.46029742]
[1743446477669,0.1828636,83586.0,83585.0,0.96029742]
[1743446478157,0.1848636,83586.0,83585.0,0.96029742]
[1743446478366,0.1828636,83586.0,83585.0,0.96029742]
[1743446478575,0.1828636,83586.0,83585.0,0.97583827]
[1743446481682,0.1828636,83586.0,83585.0,0.63345742]
[1743446482107,0.1828636,83586.0,83585.0,0.13345742]
[1743446487184,0.1828636,83586.0,83585.0,0.38469742]
[1743446487444,0.1828636,83586.0,83585.0,0.37307142]
[1743446488416,0.1828636,83586.0,83585.0,0.38503442]
[1743446491488,0.1828636,83586.0,83585.0,0.47947527]
[1743446492433,0.1828636,83586.0,83585.0,0.97947527]
[1743446493686,0.1828636,83586.0,83585.0,1.44267527]
[1743446493977,6e-07,83586.0,83585.0,1.74167527]
[1743446494237,0.0001685,83603.0,83602.0,0.39422985]
[1743446494474,0.00026842,83603.0,83602.0,1.07159371]
[1743446494683,0.00026842,83603.0,83602.0,1.08136551]
[1743446495107,0.00026842,83603.0,83602.0,1.58136551]
[1743446495517,0.00026842,83603.0,83602.0,1.58436551]
[1743446496150,0.00026842,83603.0,83602.0,1.58736551]
[1743446497715,0.00026842,83603.0,83602.0,1.28917651]
[1743446497928,0.00026842,83603.0,83602.0,1.52840451]
[1743446498558,0.00026842,83603.0,83602.0,1.54036551]
[1743446499008,0.239161,83626.0,83616.0,0.239186]
[1743446499220,0.011957,83631.0,83617.0,0.33726386]
[1743446499221,0.239151,83629.0,83617.0,0.33726386]
[1743446499433,0.23912,83640.0,83624.0,0.011958]
[1743446499644,0.011955,83645.0,83630.0,0.251102]
[1743446499861,0.24022953,83637.0,83631.0,0.26136386]
[1743446500104,0.00109853,83637.0,83636.0,0.13455986]
[1743446500321,0.00109853,83637.0,83636.0,0.80423171]
[1743446500531,0.0001684,83651.0,83636.0,0.80423171]
[1743446500532,4e-07,83643.0,83640.0,0.41490147]
[1743446500754,0.0001685,83654.0,83653.0,0.26557685]
[1743446500934,0.0001685,83654.0,83653.0,0.69076618]
[1743446501177,0.00026839,83654.0,83653.0,0.69076618]
[1743446501385,0.00026839,83654.0,83653.0,0.70031114]
[1743446501838,0.00026839,83654.0,83653.0,1.20031114]
[1743446502481,0.00526839,83654.0,83653.0,1.20131114]
[1743446502914,0.00026839,83654.0,83653.0,1.20031114]
[1743446503135,0.00026839,83654.0,83653.0,1.04705029]
[1743446503343,0.24434839,83654.0,83653.0,1.04705029]
[1743446503557,0.26130239,83654.0,83653.0,1.04705029]
[1743446503760,0.25630239,83654.0,83653.0,0.63214882]
[1743446504187,0.26030239,83654.0,83653.0,0.13214882]
[1743446504313,0.25130239,83654.0,83653.0,0.13214882]
[1743446504513,0.25130239,83654.0,83653.0,0.12260386]
[1743446504727,0.26030239,83654.0,83653.0,0.12360386]
[1743446505178,0.26030239,83654.0,83637.0,0.41490147]
[1743446505179,0.24334839,83654.0,83637.0,0.41490147]
[1743446505408,0.251081,83638.0,83637.0,0.41490147]
[1743446505697,0.251081,83638.0,83637.0,0.53750533]
[1743446506442,0.239125,83638.0,83637.0,0.53750533]
[1743446507057,0.239125,83638.0,83637.0,0.53850533]
[1743446507793,0.252081,83638.0,83637.0,0.53850533]
[1743446508132,0.240125,83638.0,83637.0,0.53750533]
[1743446508565,0.242125,83638.0,83637.0,0.53750533]
[1743446510070,0.254081,83638.0,83637.0,0.53750533]
[1743446510323,0.242125,83638.0,83637.0,0.53750533]
[1743446510713,0.242125,83638.0,83637.0,0.53784213]
[1743446511124,0.242125,83638.0,83637.0,0.54744593]
[1743446511330,0.254081,83638.0,83637.0,0.54744593]
[1743446511968,0.242125,83638.0,83637.0,0.54744593]
[1743446520622,0.003,83638.0,83637.0,0.56198678]
[1743446520827,0.003,83638.0,83637.0,0.81307078]
[1743446522219,0.003,83638.0,83637.0,1.31307078]
[1743446522422,0.003,83638.0,83637.0,1.06198678]
[1743446522620,0.003,83638.0,83637.0,1.30111478]
[1743446522831,0.003,83638.0,83637.0,1.31307078]
[1743446523606,0.003,83638.0,83637.0,1.06198678]
[1743446523805,0.003,83638.0,83637.0,1.30111478]
[1743446524010,0.001,83638.0,83637.0,1.31307078]
[1743446524257,0.0001684,83650.0,83638.0,0.01454085]
[1743446524430,0.0121224,83650.0,83641.0,0.12260386]
[1743446524649,0.0121224,83650.0,83642.0,0.01454085]
[1743446524650,0.239095,83649.0,83642.0,0.01454085]
[1743446524883,0.011955,83644.0,83643.0,0.12260386]
[1743446525072,0.251063,83644.0,83643.0,0.12260386]
[1743446525286,0.251063,83644.0,83643.0,0.13217865]
[1743446526095,0.251063,83644.0,83643.0,0.00957479]
[1743446526444,0.251078,83639.0,83638.0,0.001]
[1743446526688,0.251078,83639.0,83638.0,0.12360386]
[1743446527110,0.251078,83639.0,83638.0,0.12260386]
[1743446527323,0.251072,83641.0,83638.0,0.12260386]
[1743446527532,0.239117,83641.0,83639.0,0.12260386]
[1743446527747,0.13864,83642.0,83639.0,0.12260386]
[1743446527951,0.377754,83642.0,83640.0,0.00801802]
[1743446528226,0.13864,83642.0,83641.0,0.12260386]
[1743446528458,0.0001684,83650.0,83643.0,0.239109]
[1743446528666,0.2392624,83650.0,83644.0,0.12260386]
[1743446528867,0.239095,83649.0,83644.0,0.13060474]
[1743446529047,0.011955,83647.0,83644.0,0.13060474]
[1743446529271,0.239105,83645.0,83644.0,0.13060474]
[1743446529474,0.239103,83646.0,83644.0,0.13060474]
[1743446529674,0.239105,83645.0,83644.0,0.12260386]
[1743446529860,0.25106,83645.0,83644.0,0.12260386]
[1743446531418,0.251081,83638.0,83637.0,0.0003368]
[1743446531619,0.251081,83638.0,83637.0,0.12294066]
[1743446533359,0.253081,83638.0,83637.0,0.12294066]
[1743446533778,0.251081,83638.0,83637.0,0.12294066]
[1743446533972,0.254081,83638.0,83637.0,0.12294066]
[1743446534180,0.258081,83638.0,83637.0,0.12294066]
[1743446534379,0.258081,83638.0,83637.0,0.0003368]
[1743446536769,0.254081,83638.0,83637.0,0.0003368]
[1743446537012,0.259081,83638.0,83637.0,0.0003368]
[1743446537217,0.7615044,83638.0,83637.0,8e-07]
[1743446537445,0.80848486,83638.0,83637.0,8e-07]
[1743446537860,0.81348486,83638.0,83637.0,8e-07]
[1743446538266,0.80348486,83638.0,83637.0,8e-07]
[1743446538680,0.81348486,83638.0,83637.0,8e-07]
[1743446539399,0.80848486,83638.0,83637.0,8e-07]
[1743446539798,0.80348486,83638.0,83637.0,8e-07]
[1743446539997,0.80848486,83638.0,83637.0,8e-07]
[1743446540242,0.82720702,83638.0,83637.0,8e-07]
[1743446540444,0.70460316,83638.0,83637.0,8e-07]
[1743446540650,0.84364316,83638.0,83637.0,8e-07]
[1743446540875,0.749121,83638.0,83637.0,8e-07]
[1743446542078,0.700241,83638.0,83637.0,8e-07]
[1743446542685,1.320921,83638.0,83637.0,8e-07]
[1743446542881,1.315921,83638.0,83637.0,8e-07]
[1743446543086,1.015921,83638.0,83637.0,8e-07]
[1743446543311,1.020921,83638.0,83637.0,8e-07]
[1743446543869,0.14416,83638.0,83637.0,0.12260466]
[1743446544060,0.14916,83638.0,83637.0,0.12260466]
[1743446544197,0.1493284,83638.0,83637.0,0.12260466]
[1743446544399,0.0101684,83638.0,83637.0,0.12260466]
[1743446544724,0.0051684,83638.0,83637.0,0.36173266]
[1743446544943,0.0001684,83638.0,83637.0,0.12260466]
[1743446545134,0.0001684,83638.0,83637.0,0.13064276]
[1743446545691,0.25392922,83638.0,83637.0,8e-07]
[1743446545869,0.5562494,83638.0,83637.0,8e-07]
[1743446546727,0.5612494,83638.0,83637.0,8e-07]
[1743446547147,0.5562494,83638.0,83637.0,8e-07]
[1743446547353,0.5512494,83638.0,83637.0,8e-07]
[1743446547573,0.5602494,83638.0,83637.0,8e-07]
[1743446547977,0.5652494,83638.0,83637.0,8e-07]
[1743446548281,0.5612494,83638.0,83637.0,8e-07]
[1743446548719,0.5662494,83638.0,83637.0,8e-07]
[1743446549557,0.5612494,83638.0,83637.0,8e-07]
[1743446549965,0.7060094,83638.0,83637.0,8e-07]
[1743446550265,0.6960094,83638.0,83637.0,8e-07]
[1743446550642,0.7010094,83638.0,83637.0,8e-07]
[1743446551371,0.5612494,83638.0,83637.0,8e-07]
[1743446551581,0.7009694,83638.0,83637.0,8e-07]
[1743446551985,0.7009294,83638.0,83637.0,8e-07]
[1743446552286,0.5612494,83638.0,83637.0,8e-07]
[1743446552481,0.7008894,83638.0,83637.0,8e-07]
[1743446554690,0.5612494,83638.0,83637.0,8e-07]
[1743446554891,0.7006894,83638.0,83637.0,8e-07]
[1743446555726,0.6956894,83638.0,83637.0,8e-07]
[1743446556012,0.7006894,83638.0,83637.0,8e-07]
[1743446556136,0.6956894,83638.0,83637.0,8e-07]
[1743446556548,0.7006894,83638.0,83637.0,8e-07]
[1743446559944,0.7004494,83638.0,83637.0,8e-07]
[1743446560511,0.6954494,83638.0,83637.0,8e-07]
[1743446567160,0.6956178,83638.0,83637.0,8e-07]
[1743446569378,0.5564178,83638.0,83637.0,8e-07]
[1743446569608,0.6952978,83638.0,83637.0,8e-07]
[1743446570003,0.5564178,83638.0,83637.0,8e-07]
[1743446570209,0.6952578,83638.0,83637.0,8e-07]
[1743446570410,0.5564178,83638.0,83637.0,8e-07]
[1743446570611,0.0101684,83638.0,83637.0,0.36173266]
[1743446570813,0.0001684,83638.0,83637.0,0.12940908]
[1743446571167,0.0051684,83638.0,83637.0,0.12940908]
[1743446571621,0.2442934,83638.0,83637.0,0.12940908]
[1743446571826,0.0101684,83638.0,83637.0,0.12260466]
[1743446571982,0.0051684,83638.0,83637.0,0.12940908]
[1743446572185,0.0101684,83638.0,83637.0,0.12940908]
[1743446572554,0.0151684,83638.0,83637.0,0.12940908]
[1743446572763,0.0101684,83638.0,83637.0,0.12940908]
[1743446573144,0.2492934,83638.0,83637.0,0.12940908]
[1743446573296,0.2612494,83638.0,83637.0,0.12940908]
[1743446573507,0.2612494,83638.0,83637.0,0.12260466]
[1743446573704,0.2612494,83638.0,83637.0,8e-07]
[1743446573705,0.2552494,83638.0,83637.0,8e-07]
[1743446574203,0.2582494,83638.0,83637.0,8e-07]
[1743446574724,0.2552494,83638.0,83637.0,8e-07]
[1743446575131,0.2602494,83638.0,83637.0,8e-07]
[1743446575730,0.2562494,83638.0,83637.0,8e-07]
[1743446576134,0.2612494,83638.0,83637.0,8e-07]
[1743446576986,0.2612494,83638.0,83637.0,0.12260466]
[1743446580490,0.2612494,83638.0,83637.0,8e-07]
[1743446597239,0.0101684,83638.0,83637.0,0.44283266]
[1743446597465,0.0101684,83638.0,83637.0,0.25230466]
[1743446597645,0.0101684,83638.0,83637.0,0.25840536]
[1743446598299,0.0051684,83638.0,83637.0,0.25840536]
[1743446598719,0.0091684,83638.0,83637.0,0.25840536]
[1743446599584,0.0041684,83638.0,83637.0,0.49753336]
[1743446599792,0.0071684,83638.0,83637.0,0.25840536]
[1743446601422,0.0071684,83638.0,83637.0,0.49753336]
[1743446601676,0.0071684,83638.0,83637.0,0.25840536]
[1743446602354,0.0071684,83638.0,83637.0,0.25874216]
[1743446602585,0.0071684,83638.0,83637.0,0.50982616]
[1743446602820,0.0071684,83638.0,83637.0,0.25874216]
[1743446603536,0.0041684,83638.0,83637.0,0.25874216]
[1743446603944,0.0061684,83638.0,83637.0,0.25874216]
[1743446604117,0.0021684,83638.0,83637.0,0.25874216]
[1743446604298,0.0051684,83638.0,83637.0,0.25874216]
[1743446604498,0.0051684,83638.0,83637.0,0.93926848]
[1743446604719,0.0021684,83638.0,83637.0,1.23926848]
[1743446605082,0.0051684,83638.0,83637.0,1.73926848]
[1743446606027,0.0021684,83638.0,83637.0,1.73926848]
[1743446606237,0.0001684,83638.0,83637.0,1.73926848]
[1743446606407,0.0001684,83638.0,83637.0,1.43926848]
[1743446606610,0.0001684,83638.0,83637.0,1.18818448]
[1743446606809,0.0001684,83638.0,83637.0,1.17364363]
[1743446607011,0.2392934,83638.0,83637.0,1.17364363]
[1743446607536,0.0001684,83638.0,83637.0,1.17364363]
[1743446608823,0.0021684,83638.0,83637.0,1.17364363]
[1743446609392,0.0041684,83638.0,83637.0,1.17364363]
[1743446609596,0.0021684,83638.0,83637.0,1.42731248]
[1743446609821,0.0021684,83638.0,83637.0,1.43926848]
[1743446610028,0.0031684,83638.0,83637.0,1.43926848]
[1743446610858,0.0001684,83638.0,83637.0,1.43926848]
[1743446611265,0.0011684,83638.0,83637.0,1.43926848]
[1743446611550,0.0001684,83638.0,83637.0,1.43926848]
[1743446615887,0.0001684,83638.0,83637.0,1.44026848]
[1743446621636,0.0001684,83638.0,83637.0,1.42831248]
[1743446622003,0.0001684,83638.0,83637.0,1.44026848]
[1743446622210,0.2512494,83638.0,83637.0,1.12604363]
[1743446622367,0.2392934,83638.0,83637.0,1.12604363]
[1743446623406,0.2392934,83638.0,83637.0,1.04394363]
[1743446623823,0.2532494,83638.0,83637.0,1.04394363]
[1743446624218,0.0001684,83638.0,83637.0,1.04394363]
[1743446624545,0.0041684,83638.0,83637.0,1.04394363]
[1743446624704,0.2432934,83638.0,83637.0,1.04394363]
[1743446624922,0.2402934,83638.0,83637.0,1.04394363]
[1743446625301,0.2422934,83638.0,83637.0,1.04394363]
[1743446626520,0.2542494,83638.0,83637.0,1.04394363]
[1743446628202,0.2422934,83638.0,83637.0,1.04394363]
[1743446628763,0.2542494,83638.0,83637.0,1.04394363]
[1743446629524,0.2542494,83638.0,83637.0,0.62904216]
[1743446629966,0.2542494,83638.0,83637.0,0.12904216]
[1743446630326,0.2542494,83638.0,83637.0,0.12224146]
[1743446632786,0.0031684,83638.0,83637.0,0.37332546]
[1743446632986,0.0031684,83638.0,83637.0,0.12224146]
[1743446633134,0.0031684,83638.0,83637.0,0.12903845]
[1743446633579,0.2542494,83638.0,83637.0,0.12903845]
[1743446633777,0.0031684,83638.0,83637.0,0.12903845]
[1743446633978,0.0031684,83638.0,83637.0,0.69904146]
[1743446634134,0.0031684,83638.0,83637.0,0.70583845]
[1743446634925,0.0031684,83638.0,83637.0,0.94496645]
[1743446635126,0.0031684,83638.0,83637.0,1.0202633]
[1743446635881,0.0011684,83638.0,83637.0,1.0202633]
[1743446636403,0.0001684,83638.0,83637.0,1.43516477]
[1743446636607,0.0011684,83638.0,83637.0,1.43516477]
[1743446637025,0.0001684,83638.0,83637.0,1.43516477]
[1743446637228,0.0021684,83638.0,83637.0,1.83516477]
[1743446637735,0.0001684,83638.0,83637.0,2.13516477]
[1743446638814,0.0001684,83650.0,83649.0,0.011954]
[1743446639015,0.0001684,83650.0,83649.0,0.76918289]
[1743446639156,0.0001684,83650.0,83649.0,0.77353358]
[1743446639377,0.0001684,83650.0,83649.0,1.17353358]
[1743446640408,0.0001684,83650.0,83649.0,1.67353358]
[1743446641377,0.0011684,83650.0,83649.0,1.71873358]
[1743446641900,0.0001684,83650.0,83649.0,1.71873358]
[1743446642330,0.0011684,83650.0,83649.0,1.71873358]
[1743446642526,0.00108362,83662.0,83661.0,0.251013]
[1743446642739,0.00108362,83662.0,83661.0,0.64041686]
[1743446642902,0.00108362,83662.0,83661.0,0.66164499]
[1743446643341,0.00108362,83662.0,83661.0,1.06164499]
[1743446643727,0.00108362,83662.0,83661.0,0.66164499]
[1743446643936,0.00108362,83662.0,83661.0,1.16164499]
[1743446644526,0.00608362,83662.0,83661.0,1.56164499]
[1743446644862,0.00908362,83662.0,83661.0,1.56164499]
[1743446645847,0.00908362,83662.0,83661.0,1.17203199]
[1743446646052,0.24814062,83662.0,83661.0,0.75749114]
[1743446646172,0.26009262,83662.0,83661.0,0.62929114]
[1743446646402,0.24814062,83662.0,83661.0,1.04419221]
[1743446646803,0.24814062,83662.0,83661.0,1.05873306]
[1743446647014,0.24314062,83662.0,83661.0,1.05873306]
[1743446647261,0.25909262,83662.0,83661.0,1.05873306]
[1743446648002,0.25209262,83662.0,83661.0,1.05873306]
[1743446648144,0.25609262,83662.0,83661.0,1.05873306]
[1743446648509,0.25909262,83662.0,83661.0,1.05873306]
[1743446649047,0.25909262,83662.0,83661.0,1.04419221]
[1743446649591,0.25509262,83662.0,83661.0,0.54419221]
[1743446650050,0.25909262,83662.0,83661.0,0.54419221]
[1743446650256,0.25926112,83662.0,83661.0,0.42158835]
[1743446650459,0.251045,83650.0,83649.0,0.0004536]
[1743446650611,0.251045,83650.0,83649.0,0.12305746]
[1743446651462,0.251045,83650.0,83649.0,6e-07]
[1743446651668,0.327445,83650.0,83649.0,6e-07]
[1743446652393,0.627445,83650.0,83649.0,6e-07]
[1743446652847,0.633445,83650.0,83649.0,6e-07]
[1743446654379,0.632445,83650.0,83649.0,6e-07]
[1743446654560,0.627445,83650.0,83649.0,6e-07]
[1743446654742,0.632445,83650.0,83649.0,6e-07]
[1743446655287,0.637445,83650.0,83649.0,6e-07]
[1743446656655,0.632445,83650.0,83649.0,6e-07]
[1743446656849,0.637445,83650.0,83649.0,6e-07]
[1743446657294,0.632445,83650.0,83649.0,6e-07]
[1743446657511,0.251081,83638.0,83637.0,4e-07]
[1743446657715,0.689681,83638.0,83637.0,2.1e-07]
[1743446659327,0.694681,83638.0,83637.0,2.1e-07]
[1743446659687,0.699681,83638.0,83637.0,2.1e-07]
[1743446660173,0.694681,83638.0,83637.0,2.1e-07]
[1743446660609,0.699681,83638.0,83637.0,2.1e-07]
[1743446660946,1.48088872,83638.0,83637.0,2.1e-07]
[1743446661171,1.49960998,83638.0,83637.0,2.1e-07]
[1743446661612,1.49460998,83638.0,83637.0,2.1e-07]
[1743446661777,1.37200612,83638.0,83637.0,2.1e-07]
[1743446662019,0.251219,83592.0,83591.0,0.078]
[1743446662224,0.251219,83592.0,83591.0,0.20074269]
[1743446662465,0.251219,83592.0,83591.0,0.20818179]
[1743446663503,0.253219,83592.0,83591.0,0.13018179]
[1743446663722,0.253219,83592.0,83591.0,0.62274269]
[1743446663933,0.256219,83592.0,83591.0,0.63018179]
[1743446664972,0.256219,83592.0,83591.0,0.13018179]
[1743446665174,0.256219,83592.0,83591.0,0.12274269]
[1743446666210,0.254219,83592.0,83591.0,0.12274269]
[1743446666430,0.254219,83592.0,83591.0,0.00013883]
[1743446666431,0.251219,83592.0,83591.0,0.00013883]
[1743446666634,0.260219,83592.0,83591.0,0.00013883]
[1743446666840,0.256219,83592.0,83591.0,0.00013883]
[1743446667039,0.251219,83592.0,83591.0,0.00013883]
[1743446667257,0.255219,83592.0,83591.0,0.00013883]
[1743446667422,0.009,83592.0,83591.0,0.00013883]
[1743446667622,0.26289882,83592.0,83591.0,0.00013883]
[1743446667825,0.255219,83592.0,83591.0,0.00013883]
[1743446668686,0.253939,83592.0,83591.0,0.00013883]
[1743446669027,0.251219,83592.0,83591.0,0.00013883]
[1743446669296,0.261219,83592.0,83591.0,0.00013883]
[1743446669515,0.256219,83592.0,83591.0,8.3e-07]
[1743446669903,0.261219,83592.0,83591.0,8.3e-07]
[1743446670120,0.561219,83592.0,83591.0,8.3e-07]
[1743446670574,0.556219,83592.0,83591.0,8.3e-07]
[1743446670851,0.551237,83586.0,83585.0,8.3e-07]
[1743446671096,0.689877,83586.0,83585.0,6.7e-07]
[1743446671345,0.766977,83586.0,83585.0,6.7e-07]
[1743446672062,1.42208472,83586.0,83585.0,6.7e-07]
[1743446672245,1.29948086,83586.0,83585.0,6.7e-07]
[1743446672442,1.30448086,83586.0,83585.0,6.7e-07]
[1743446672801,1.32321395,83586.0,83585.0,6.7e-07]
[1743446673644,1.29806729,83586.0,83585.0,6.7e-07]
[1743446673805,1.30306729,83586.0,83585.0,6.7e-07]
[1743446674798,1.31503029,83586.0,83585.0,6.7e-07]
[1743446676223,0.251279,83572.0,83571.0,6.7e-07]
[1743446676433,0.251282,83571.0,83570.0,8.7e-07]
[1743446676627,0.251282,83571.0,83570.0,0.00046518]
[1743446676787,0.251297,83566.0,83565.0,0.00020218]
[1743446679422,0.256297,83566.0,83565.0,0.00020218]
[1743446679641,0.251297,83566.0,83565.0,0.00020218]
[1743446679844,0.256297,83566.0,83565.0,0.00020218]
[1743446680158,0.261297,83566.0,83565.0,0.17748604]
[1743446683312,0.251318,83559.0,83556.0,0.0769]
[1743446685903,0.256318,83559.0,83556.0,0.0769]
[1743446686467,0.261318,83559.0,83553.0,0.0003366]
[1743446691919,0.251318,83559.0,83553.0,0.0003366]
[1743446693666,0.256318,83559.0,83553.0,0.0003366]
[1743446693896,0.632818,83559.0,83558.0,2e-07]
[1743446694153,0.627818,83559.0,83558.0,2e-07]
[1743446694371,0.79582186,83559.0,83558.0,2e-07]
[1743446694602,0.80582186,83559.0,83558.0,2e-07]
[1743446694895,0.551334,83554.0,83553.0,8e-07]
[1743446695135,0.690014,83554.0,83553.0,8e-07]
[1743446695783,0.551334,83554.0,83553.0,8e-07]
[1743446695994,0.690014,83554.0,83553.0,8e-07]
[1743446696388,0.701014,83554.0,83553.0,0.0010008]
[1743446696818,0.695014,83554.0,83553.0,0.0010008]
[1743446697022,0.695014,83554.0,83553.0,8e-07]
[1743446697227,0.701014,83554.0,83553.0,8e-07]
[1743446697659,0.84116762,83554.0,83553.0,8e-07]
[1743446697864,0.82361786,83554.0,83553.0,8e-07]
[1743446698221,0.25137,83542.0,83541.0,0.002]
[1743446699466,0.25637,83542.0,83541.0,0.00213898]
[1743446699640,0.26137,83542.0,83541.0,0.00213898]
[1743446701111,0.26137,83542.0,83541.0,9.8e-07]
[1743446701112,1.18273,83542.0,83541.0,9.8e-07]
[1743446701310,1.18273,83542.0,83521.0,0.07672385]
[1743446701311,0.251429,83522.0,83521.0,0.07672385]
[1743446702518,0.011972,83522.0,83521.0,0.19932771]
[1743446702793,0.255429,83522.0,83521.0,0.19932771]
[1743446703207,0.260429,83522.0,83521.0,0.19932771]
[1743446704466,0.248457,83522.0,83521.0,0.19922742]
[1743446704669,0.009,83522.0,83521.0,0.45066042]
[1743446705070,0.009,83522.0,83521.0,0.19922742]
[1743446705272,0.009,83522.0,83521.0,0.43868742]
[1743446705495,0.004,83522.0,83521.0,0.19922742]
[1743446705670,0.004,83522.0,83521.0,0.43868742]
[1743446705877,0.009,83522.0,83521.0,0.43868742]
[1743446706518,0.004,83522.0,83521.0,0.43868742]
[1743446706818,0.251439,83519.0,83518.0,0.00047581]
[1743446709446,0.003,83519.0,83518.0,0.24677967]
[1743446709915,0.003,83519.0,83518.0,0.49822167]
[1743446710112,0.003,83519.0,83518.0,0.48624867]
[1743446710113,0.008,83519.0,83518.0,0.48624867]
[1743446710327,0.008,83519.0,83518.0,0.24677967]
[1743446710560,0.239441,83528.0,83521.0,0.23946]
[1743446710758,0.251413,83528.0,83522.0,0.12260386]
[1743446710961,0.239446,83526.0,83522.0,0.12260386]
[1743446711134,0.239452,83524.0,83522.0,0.12260386]